Cogmind - Beta 16 @@@ ROGUE MODE // 2025.12.06 @ 16:15:23 Player: omewwes Result: Destroyed by P-70 Sage with Tesla Rifle Performance ------------- Evolutions (4) 2000 Regions Visited (16) 3200 Robots Destroyed (279) 1395 Value Destroyed (10317) 10317 Prototype IDs (32) 640 Alien Tech Used (0) 0 Bonus (6227) 6227 TOTAL SCORE: 23779 Bonus ------- High Alert Combat Kills 777 Follower Combat Kills 950 Entered Garrisons 1200 Used RIF Installer 3000 Aligned with FarCom 300 Cogmind --------- Core Integrity 0/850 Matter 267/300 Energy 420/480 System Corruption 11% Temperature Cool (36) Movement Rolling (205) Ox7 Location -6/Garrison Parts ------- > --- POWER (2) -------- Reinforced Deuterium Engine Reinforced Deuterium Engine > --- PROPULSION (2) --- Armored Huge Wheel > --- UTILITY (7) ------ Advanced Heat Sink Cargo Storage Unit Advanced Targeting Computer Improved Core Shielding Reactive Plating Improved Shield Generator > --- WEAPON (4) ------- Gauss Rifle Gauss Rifle Gauss Rifle Gauss Rifle > --- INVENTORY (30) --- Improved Deuterium Engine Improved Deuterium Engine Armored Huge Wheel Armored Huge Wheel Large Matter Pod (150) Compact Matter Pod (0) Matter Compressor (109) Improved Power Shielding Improved Light Armor Plating Improved Light Armor Plating Reactive Plating Reactive Plating Reactive Plating Improved Shield Generator System Shield Relay Coupler [NC] (33) Skeleton Box High-powered Tractor Beam Autogun Autogun Autogun Flak Gun Heavy Missile Launcher Remote Datajack Heavy Mace Peak State ------------ > --- POWER ------------ Reinforced Deuterium Engine Light Angular Momentum Engine > --- PROPULSION ------- Improved Heavy Treads > --- UTILITY ---------- Coolant Injector Cargo Storage Unit Compact Battery Relay Coupler [Grunt] Relay Coupler [Sentry] Relay Coupler [Hunter] > --- WEAPON ----------- PD Laser Remote Datajack > --- INVENTORY -------- Reinforced Deuterium Engine Advanced Heat Sink Improved Cooling System Large Matter Pod Compact Matter Pod Matter Compressor Advanced Targeting Computer Weapon Cycler Weapon Cycler Weapon Cycler Weapon Cycler Improved Power Shielding Improved Light Armor Plating Improved Light Armor Plating Improved Light Armor Plating Layered Medium Armor Plating Reactive Plating Reactive Plating Reactive Plating Reactive Plating Relay Coupler [NC] Relay Coupler [Brawler] Relay Coupler [Specialist] Skeleton Box Gatling Laser Gatling Laser Heavy Beamcaster Autogun Heavy Missile Launcher Heavy Mace [Rating: 79] Favorites ----------- Power Reinforced Deuterium Engine Engine Reinforced Deuterium Engine Power Core Micro Nuclear Core Propulsion Armored Huge Wheel Treads Medium Treads Leg Aluminum Leg Wheel Armored Huge Wheel Utility Improved Heat Sink Device Improved Heat Sink Storage High-capacity Storage Unit Processor Target Analyzer Hackware Relay Coupler [Sentry] Protection Improved Light Armor Plating Weapon Precision Beam Rifle Energy Gun Precision Beam Rifle Energy Cannon Heavy Plasma Cannon Ballistic Gun Gauss Rifle Launcher Heavy Missile Launcher Special Weapon Remote Datajack Impact Weapon Heavy Mace Build | -11 -10 -10 -10 -9 -8 -8 -8 -8 -7 -7 -7 -7 -6 -6 -6 -6 ------- Run | Yrd Mat Min Exi Min Mat Gar Mat Gar Fac Gar Fac Gar Fac Gar Fac Gar Slots Evolved 8 | . . . . . 4 . . . 2 . . . 2 . . . Power 1 | . . . . . . . . . 1 . . . . . . . Propulsion . | . . . . . . . . . . . . . . . . . Utility 5 | . . . . . 2 . . . 1 . . . 2 . . . Weapon 2 | . . . . . 2 . . . . . . . . . . . Parts Attached 208 | 7 6 10 . 1 31 12 5 22 8 7 2 14 17 59 2 5 Power 30 | 1 2 1 . . 4 3 . 3 1 2 . 2 5 6 . . Engine 20 | 1 2 1 . . 3 3 . 2 . 2 . 1 1 4 . . Core 10 | . . . . . 1 . . 1 1 . . 1 4 2 . . Reactor . | . . . . . . . . . . . . . . . . . Propulsion 31 | 2 1 3 . . 4 2 4 2 3 . . 1 2 7 . . Treads 12 | . . . . . 2 2 2 2 . . . . . 4 . . Leg 5 | 2 1 . . . . . . . . . . . . 2 . . Wheel 14 | . . 3 . . 2 . 2 . 3 . . 1 2 1 . . Hover . | . . . . . . . . . . . . . . . . . Flight . | . . . . . . . . . . . . . . . . . Utility 86 | 2 1 4 . . 14 6 . 8 1 2 1 7 7 26 2 5 Device 43 | 1 1 3 . . 8 5 . 6 . 1 . 4 3 7 1 3 Storage 10 | 1 . . . . 3 1 . 1 . . . 1 1 2 . . Processor 6 | . . . . . . . . . . . . . 2 4 . . Hackware 4 | . . . . . . . . . . . . . . 4 . . Protection 23 | . . 1 . . 3 . . 1 1 1 1 2 1 9 1 2 Artifact . | . . . . . . . . . . . . . . . . . Weapon 61 | 2 2 2 . 1 9 1 1 9 3 3 1 4 3 20 . . Energy Gun 24 | 1 . . . . 4 1 1 5 3 . . . 2 7 . . Energy Cannon 1 | . . . . . . . . 1 . . . . . . . . Ballistic Gun 30 | 1 2 1 . 1 5 . . 2 . 3 1 3 1 10 . . Ballistic Cannon . | . . . . . . . . . . . . . . . . . Launcher 3 | . . 1 . . . . . 1 . . . 1 . . . . Special Weapon 1 | . . . . . . . . . . . . . . 1 . . Impact Weapon 2 | . . . . . . . . . . . . . . 2 . . Slashing Weapon . | . . . . . . . . . . . . . . . . . Piercing Weapon . | . . . . . . . . . . . . . . . . . Special Melee Weapon . | . . . . . . . . . . . . . . . . . Unidentified Prototypes 5 | . . 1 . . 2 . . . 1 . . . . 1 . . Corrupted Parts 6 | . . . . . . . . 5 . . . . . 1 . . System Corruption 18 | . . . . . . . . 17 . . . . . 1 . . Parts Lost 70 | . 2 . . . 5 3 1 11 1 4 2 8 7 23 . 3 Power 12 | . 1 . . . . 1 . 1 . 2 . 1 1 5 . . Propulsion 6 | . . . . . . . . 2 . . . 1 1 2 . . Utility 22 | . 1 . . . 3 1 . 2 . 1 1 4 . 7 . 2 Weapon 30 | . . . . . 2 1 1 6 1 1 1 2 5 9 . 1 Highest Loss Streak 17 | . 2 . . . 2 2 1 6 1 1 1 7 4 17 . 3 To Critical Strikes 1 | . . . . . . . . . . . . . 1 . . . Average Backups 18 | . 3 7 7 8 11 13 16 17 15 16 16 14 23 27 27 27 Power 1 | . . . . . . . 1 1 1 1 1 2 1 . 2 2 Propulsion 1 | . . . . . . 1 1 2 2 1 1 . . 1 2 2 Utility 10 | . 1 3 3 3 4 5 6 8 7 7 8 6 13 19 14 14 Weapon 4 | . 1 3 4 4 5 5 6 3 2 3 4 4 5 3 7 6 Tool/Special . | . . . . . . . . . . . . . . . . . Unused Backups 63 | . 3 3 . . 4 3 3 3 8 6 1 1 3 13 1 11 Power 10 | . 1 . . . . . . 1 1 2 . 1 1 1 . 2 Propulsion 13 | . 1 . . . 1 . . 2 4 1 . . 1 2 . 1 Utility 32 | . . 2 . . 2 3 2 . 3 3 1 . 1 8 1 6 Weapon 8 | . 1 1 . . 1 . 1 . . . . . . 2 . 2 Tool/Special . | . . . . . . . . . . . . . . . . . Average Slot Usage (%) 89 | . 98 100 100 100 96 99 100 99 87 83 84 89 87 74 86 84 Engine 7 | . 13 14 14 14 3 3 9 1 12 9 15 13 5 7 13 13 Core 3 | . . . . . 5 5 . 7 2 4 . 1 6 2 . . Treads 6 | . . . . . 5 18 14 15 5 . . . . 6 . . Leg 1 | . 28 7 . . . . . . . . . . . . . . Wheel 5 | . . 20 28 28 12 . 3 2 7 7 7 7 8 1 6 6 Device 16 | . 13 11 . . 17 26 27 25 15 14 15 14 25 8 11 12 Storage 8 | . 14 14 14 14 9 9 9 9 7 7 7 7 6 8 7 6 Protection 6 | . . 2 14 14 6 . . . 6 6 7 12 6 9 13 12 Energy Gun 14 | . 11 . . . 25 36 36 21 22 20 4 . 4 5 . . Ballistic Gun 13 | . 16 27 28 28 10 . . 13 5 9 25 29 21 8 25 24 Peak Build Rating 79 | 7 10 18 12 12 42 45 40 52 58 58 61 60 68 79 63 65 Average Rating 46 | 4 7 11 12 12 30 38 39 47 54 57 59 52 61 53 62 63 On Entrance 36 | . 7 10 12 12 12 42 37 39 51 58 58 60 51 55 60 62 Avg Prop Armor Cover (%) 7 | . . 8 . . . . . 8 4 . . . . 8 . . Naked Turns . | . . . . . . . . . . . . . . . . . Heaviest Build 206 | 12 17 21 21 21 45 59 61 76 105 110 105 100 192 194 202 206 Greatest Support 75 | 20 20 20 20 20 56 56 40 58 58 28 28 28 28 75 28 28 Greatest Overweight (x) 50 | . . 1 1 1 1 1 6 7 10 3 3 3 9 50 7 7 Average Overweight (x) 2 | . . . 1 1 . . 1 1 3 3 3 2 6 4 6 7 Largest Inventory Capacity 30 | 8 8 8 8 8 15 20 20 20 20 20 20 20 30 30 30 30 Average Capacity 21 | 7 8 8 8 8 11 16 20 20 20 20 20 20 30 30 30 30 Most Carried 30 | . 8 8 8 8 15 17 20 20 20 20 20 19 30 30 30 30 Average Carried 19 | . 3 7 7 8 11 14 18 19 18 19 19 16 23 27 29 29 Final Capacity 30 | 8 8 8 8 8 15 20 20 20 20 20 20 20 30 30 30 30 Final Carried 30 | . 8 8 8 8 15 16 20 19 20 19 19 16 27 29 30 27 Class Distribution -------------------- 30% | Scavenger-Skirmisher 22% | Scavenger-Tank 12% | Skirmisher 9% | Hauler-Tank 7% | Mutant 7% | Botlord-Tank Dominant Class ---------------- Mutant | -10/Materials Mutant | -10/Mines Mutant | -10/Exiles Mutant | -9/Mines Skirmisher | -8/Materials Skirmisher | -8/Garrison Scavenger-Skirmisher | -8/Materials Scavenger-Skirmisher | -8/Garrison Scavenger-Skirmisher | -7/Factory Scavenger-Skirmisher | -7/Garrison Scavenger-Tank | -7/Factory Scavenger-Tank | -7/Garrison Hauler-Tank | -6/Factory Botlord-Tank | -6/Garrison Scavenger-Tank | -6/Factory Scavenger-Tank | -6/Garrison Resources | -11 -10 -10 -10 -9 -8 -8 -8 -8 -7 -7 -7 -7 -6 -6 -6 -6 ----------- Run | Yrd Mat Min Exi Min Mat Gar Mat Gar Fac Gar Fac Gar Fac Gar Fac Gar Matter Collected 8822 | 192 228 318 . 58 838 150 50 489 386 450 277 847 1511 2419 29 580 Remotely 532 | . . . . . 302 . . . . . . . . . . 230 Salvage Created 12194 | 24 283 173 . 57 1793 996 277 1112 1169 1309 105 633 1459 2205 110 489 Parts 595 | 6 16 20 . 5 89 46 13 64 57 57 9 34 59 85 10 25 Haulers Intercepted 11 | . 1 . . . 6 . 1 . 1 . . . 2 . . . Recyclers Shooed 11 | . . . . . 4 . . . . . . . 7 . . . Parts Field Recycled . | . . . . . . . . . . . . . . . . . Retrieved Matter . | . . . . . . . . . . . . . . . . . Parts Self-Destructed . | . . . . . . . . . . . . . . . . . Prevented . | . . . . . . . . . . . . . . . . . Parts Restored . | . . . . . . . . . . . . . . . . . Kills | -11 -10 -10 -10 -9 -8 -8 -8 -8 -7 -7 -7 -7 -6 -6 -6 -6 ------- Run | Yrd Mat Min Exi Min Mat Gar Mat Gar Fac Gar Fac Gar Fac Gar Fac Gar Combat Hostiles Destroyed 217 | . 4 6 . 4 26 20 3 22 14 29 3 23 16 27 4 16 Melee 2 | . . . . . . . . . . . . . . 2 . . Guns 177 | . 4 3 . 4 22 20 3 17 10 22 3 20 13 21 4 11 Cannons 1 | . . . . . . . . 1 . . . . . . . . AOE 35 | . . 3 . . 3 . . 4 3 7 . 3 3 4 . 5 Classes Destroyed 17 | 1 4 2 . . 3 2 . 3 . . . . 2 . . . Worker 21 | . 3 . . . 2 . 1 . 8 . . . 7 . . . Builder 3 | . . . . . . . . . . . . . 3 . . . Tunneler 6 | 1 . 1 . . 1 . 1 . 2 . . . . . . . Hauler 11 | . 1 . . . 6 . 1 . 1 . . . 2 . . . Recycler 12 | . . . . . 5 . . . 2 . . . 5 . . . Mechanic 1 | . . . . . . . . . . . . . 1 . . . Operator 1 | . 1 . . . . . . . . . . . . . . . Watcher 4 | . . . . . 2 . . 1 1 . . . . . . . Swarmer 64 | . . 3 . 4 7 7 . 4 . 11 . 8 . 10 3 7 Cutter 3 | . . . . . . . . 3 . . . . . . . . Grunt 65 | . 4 1 . . 12 4 2 6 11 5 . 3 4 6 . 7 Brawler 9 | . . . . . . 1 . . . 2 . 3 . 3 . . Duelist 8 | . . . . . . 3 . . 1 3 . 1 . . . . Sentry 39 | . . 2 . . 6 6 1 5 . 8 . 4 2 5 . . Specialist 4 | . . . . . . . . 1 . 1 . . 2 . . . Hunter 9 | . . . . . 1 . . 1 . . . 1 4 2 . . Programmer 19 | . . . . . . . . 3 2 . 3 3 4 1 1 2 Best Kill Streak 11 | 1 3 3 . 3 6 5 2 5 6 4 2 6 11 9 4 6 Combat Bots Only 9 | . 3 3 . 3 6 5 2 5 4 4 2 6 7 9 4 6 Max Kills in Single Turn 3 | 1 1 2 . 1 3 2 2 2 3 3 1 2 3 2 1 2 Gunslinging 1 | . . . . . 1 1 1 1 . 1 . . . 1 . 1 Exploded 3 | . . 2 . . 3 . . 2 3 3 . 2 2 2 . 2 Melee 1 | . . . . . . . . . . . . . . 1 . . Uniques/NPCs Destroyed . | . . . . . . . . . . . . . . . . . Combat | -11 -10 -10 -10 -9 -8 -8 -8 -8 -7 -7 -7 -7 -6 -6 -6 -6 -------- Run | Yrd Mat Min Exi Min Mat Gar Mat Gar Fac Gar Fac Gar Fac Gar Fac Gar Hostile Shots Fired 1503 | . 30 28 . 12 112 49 10 101 46 288 25 257 195 225 16 109 Missed 446 | . 9 6 . 4 19 14 2 31 20 102 2 85 53 67 6 26 Hits 1057 | . 21 22 . 8 93 35 8 70 26 186 23 172 142 158 10 83 Melee 38 | . . . . . . . . 4 1 7 . 1 . 20 . 5 Projectile 1019 | . 21 22 . 8 93 35 8 66 25 179 23 171 142 138 10 78 AOE 3 | . . . . . . . . 2 . . . . 1 . . . Critical Strikes 39 | . . . . . 3 2 2 3 6 2 5 2 2 7 . 5 Actively Blocked 1 | . . . . . . . . . . . . . . . . 1 Part Disruptions 5 | . . . . . . . . . . . . . 5 . . . Damage Taken 13403 | . 267 297 . 71 1330 483 139 1273 482 1922 241 1369 1376 2814 130 1209 Core 1512 | . 12 33 . . 158 64 15 124 14 142 . 96 96 637 . 121 Absorbed by Shields 1918 | . . . . . . . . 11 . 176 93 549 547 144 51 347 Redirected to Shielding 52 | . . . . . . . . . . . . . . . 6 46 Ignored by Resistances 414 | . . . . . . . . . . . 60 . 253 97 . 4 Regen/Repaired (Parts) 89 | . . . . . . . . . . . . . 89 . . . Core Remaining (%) 70 | 100 . . . 82 . . . 34 . . . 64 . . . . Volleys Fired 653 | 2 36 18 . 6 72 37 10 51 58 61 10 51 66 138 6 31 Largest 4 | 2 2 2 . 2 4 4 4 4 4 4 4 4 4 4 4 4 Hottest 259 | 60 60 46 . 46 244 246 240 240 234 259 170 118 175 238 112 112 Shots Fired 2003 | 4 72 34 . 12 279 148 30 162 156 221 40 164 233 320 24 104 Gun 1948 | 4 72 32 . 12 278 148 30 148 156 218 40 159 230 298 24 99 Cannon 12 | . . . . . . . . 12 . . . . . . . . Launcher 26 | . . 2 . . 1 . . 2 . 3 . 5 3 5 . 5 Special 17 | . . . . . . . . . . . . . . 17 . . Kinetic 1143 | 2 41 32 . 12 138 . . 50 54 69 34 159 208 221 24 99 Thermal 599 | 2 31 . . . 140 148 28 41 25 102 6 . 16 60 . . Explosive 26 | . . 2 . . 1 . . 2 . 3 . 5 3 5 . 5 Electromagnetic 218 | . . . . . . . 2 69 77 47 . . 6 17 . . Robot Hit Streak 65 | 2 11 11 . 6 40 19 5 23 17 16 5 7 12 65 5 7 Robot Miss Streak 18 | 1 3 2 . 1 4 3 2 2 4 4 6 12 18 7 4 3 Penetration Max 1 | . . . . . . . . . . . . . 1 1 . . Secondary Targets 37 | . . . . . 3 8 1 1 2 7 . 6 . 3 1 5 Max Gunslinging Chain 2 | . . . . . 1 1 1 1 1 1 . 1 . 1 1 2 Autonomous 10 | . . . . . . . . . . . . . . 10 . . Shots Hit Robots 1383 | 2 50 27 . 8 183 97 21 110 82 155 26 123 166 263 10 60 Core Hits 800 | 1 16 12 . 4 69 44 12 43 43 66 9 104 190 147 6 34 Critical Kills 9 | . . . . . . . . 2 . . . . . 6 . 1 Critical Parts Destroyed 19 | . 1 1 . . 1 . . . . . 1 . 7 6 . 2 Critical Strikes 64 | . 1 1 . . 16 10 2 4 1 2 1 . 9 14 . 3 Burn 29 | . . . . . 15 10 2 1 . . . . 1 . . . Meltdown 1 | . . . . . . . . 1 . . . . . . . . Destroy 27 | . 1 1 . . 1 . . 1 . 1 1 . 8 10 . 3 Corrupt 5 | . . . . . . . . 1 1 1 . . . 2 . . Smash 2 | . . . . . . . . . . . . . . 2 . . Melee Attacks 13 | . . . . . . . . . . . . . . 11 2 . Impact 13 | . . . . . . . . . . . . . . 11 2 . Slashing . | . . . . . . . . . . . . . . . . . Piercing . | . . . . . . . . . . . . . . . . . Sneak Attacks . | . . . . . . . . . . . . . . . . . Combat Hostiles . | . . . . . . . . . . . . . . . . . Follow-up Attacks . | . . . . . . . . . . . . . . . . . Damage Inflicted 30118 | 26 606 566 . 126 3392 1680 406 2470 2214 3713 673 2917 3666 5229 209 2225 Guns 24297 | 26 606 420 . 126 3002 1680 406 1836 1744 3063 673 1980 2913 4367 209 1246 Cannons 345 | . . . . . . . . 345 . . . . . . . . Explosions 5248 | . . 146 . . 390 . . 289 470 650 . 937 753 634 . 979 Melee 225 | . . . . . . . . . . . . . . 225 . . Ramming 3 | . . . . . . . . . . . . . . 3 . . Kinetic 13568 | 14 322 420 . 126 1180 . . 478 494 921 540 1980 2663 2975 209 1246 Thermal 8654 | 12 284 . . . 1822 1680 368 819 612 1525 133 . 192 1207 . . Explosive 4623 | . . 146 . . 390 . . 238 . 546 . 937 753 634 . 979 Electromagnetic 3045 | . . . . . . . 38 935 1108 721 . . 58 185 . . Impact 225 | . . . . . . . . . . . . . . 225 . . Slashing . | . . . . . . . . . . . . . . . . . Piercing . | . . . . . . . . . . . . . . . . . Highest Corruption 19 | . . . . . . . . 19 1 1 8 9 3 7 9 10 Average Corruption 5 | . . . . . . . . 6 1 1 5 8 1 5 7 9 Corruption Purged . | . . . . . . . . . . . . . . . . . Corruption Blocked . | . . . . . . . . . . . . . . . . . Effects 257 | . . . . . . . . 50 3 10 16 38 8 105 16 11 Message Errors 72 | . . . . . . . . 18 . 2 6 9 2 24 7 4 Matter Fused 52 | . . . . . . . . 11 1 4 2 7 1 22 3 1 Heat Flow Errors 36 | . . . . . . . . 5 2 . 4 7 1 14 2 1 Energy Discharges 29 | . . . . . . . . 5 . 2 3 6 1 11 1 . Parts Rejected 1 | . . . . . . . . . . . . . . 1 . . Parts Fused 1 | . . . . . . . . . . . . . . 1 . . Data Loss (minor) 32 | . . . . . . . . 5 . 1 . 6 1 15 1 3 Data Loss (major) 15 | . . . . . . . . 3 . . . . 2 7 2 1 Misfires 4 | . . . . . . . . 1 . . 1 1 . 1 . . Alerts 9 | . . . . . . . . 1 . 1 . . . 6 . 1 Weapon Failures 6 | . . . . . . . . 1 . . . 2 . 3 . . Overload Shots . | . . . . . . . . . . . . . . . . . Overflow Damage 321 | . . 3 . . 26 . . 55 97 27 . 6 . 61 . 46 Projectiles 47 | . . . . . . . . 47 . . . . . . . . Explosions 237 | . . 3 . . 26 . . 8 97 27 . 6 . 24 . 46 Melee 37 | . . . . . . . . . . . . . . 37 . . Knockbacks 3 | . . . . . . . . . . . . . . 3 . . Impact 3 | . . . . . . . . . . . . . . 3 . . Kinetic . | . . . . . . . . . . . . . . . . . Secondary . | . . . . . . . . . . . . . . . . . Self-Inflicted Damage 515 | . . 31 . . . . . 29 55 53 . 25 86 183 32 21 Shots 15 | . . 1 . . . . . 1 1 2 . 1 3 3 1 2 Rammed 1 | . . . . . . . . . . . . . . 1 . . Targets Rammed 1 | . . . . . . . . . . . . . . 1 . . Kicked . | . . . . . . . . . . . . . . . . . Crushed . | . . . . . . . . . . . . . . . . . Highest Temperature 376 | . 124 14 . 40 302 330 24 198 311 322 344 268 234 332 235 376 Average Temperature 83 | . 79 4 . 21 100 66 12 47 60 99 177 60 47 98 75 98 Received Heat Transfer 2792 | . 153 84 . 6 432 135 81 177 207 350 . 322 133 413 . 299 Effects 10 | . . . . . 4 . . . . 1 1 1 . . . 3 Shutdowns 3 | . . . . . . . . . . . 1 . . . . 2 Energy Bleed 3 | . . . . . . . . . . 1 . 1 . . . 1 Interference 4 | . . . . . 4 . . . . . . . . . . . Siege Activations . | . . . . . . . . . . . . . . . . . Martial Activations . | . . . . . . . . . . . . . . . . . Shielding Activations . | . . . . . . . . . . . . . . . . . Robots Disrupted 1 | . . . . . . . . . . 1 . . . . . . Combat Hostiles 1 | . . . . . . . . . . 1 . . . . . . Robots Corrupted 1 | . . . . . . . . . 1 . . . . . . . Combat Hostiles 1 | . . . . . . . . . 1 . . . . . . . Parts Fried 16 | . . . . . . . . 5 10 1 . . . . . . Impact Corruptions 2 | . . . . . . . . . . . . . . 2 . . Robots Melted 4 | . . . . . 2 1 . 1 . . . . . . . . Combat Hostiles 1 | . . . . . 1 . . . . . . . . . . . Parts Melted 49 | . 1 . . . 19 10 2 2 2 10 . . . 3 . . Heat Transferred 18781 | 25 650 . . . 5069 4403 962 1425 560 3067 250 . 444 1926 . . Parts Sabotaged . | . . . . . . . . . . . . . . . . . Parts Stolen . | . . . . . . . . . . . . . . . . . Parts Stripped . | . . . . . . . . . . . . . . . . . Power Chain Reactions 4 | . . . . . 1 . . 1 . 2 . . . . . . Alert | -11 -10 -10 -10 -9 -8 -8 -8 -8 -7 -7 -7 -7 -6 -6 -6 -6 ------- Run | Yrd Mat Min Exi Min Mat Gar Mat Gar Fac Gar Fac Gar Fac Gar Fac Gar Maximum Alert Level 3 | . . . . . 2 3 2 3 1 2 1 2 1 3 2 2 Low Security (%) 32 | 100 100 100 . 100 29 . . . . . 50 50 96 40 . . Level 1 32 | . . . . . 56 10 91 26 100 41 49 28 3 23 22 57 Level 2 25 | . . . . . 14 42 8 63 . 58 . 21 . 19 77 42 Level 3 9 | . . . . . . 46 . 9 . . . . . 16 . . Level 4 . | . . . . . . . . . . . . . . . . . Level 5 . | . . . . . . . . . . . . . . . . . High Security . | . . . . . . . . . . . . . . . . . Max Security . | . . . . . . . . . . . . . . . . . Peak Influence 1046 | 5 41 89 . 110 436 1046 542 745 390 665 348 417 227 1020 535 532 Initial 535 | . . 1 . . 27 256 509 224 390 218 348 34 218 13 535 294 Average 339 | 1 10 20 . 71 252 688 335 485 300 465 196 218 80 356 445 401 Influence Increases 7087 | 5 152 168 . 120 933 900 384 751 384 527 77 463 366 1457 132 268 Destroy 0b10 Robot/C 3803 | . 80 120 . 80 520 600 180 435 210 435 45 330 192 336 48 192 Destroy 0b10 Robot/NC 297 | 5 25 5 . . 80 10 20 12 56 . . . 54 30 . . Destroy Leader 514 | . 32 10 . 10 136 20 62 26 52 24 8 30 56 18 12 18 Allied During Kill 245 | . . . . . . 69 114 41 . 1 . . . 20 . . Trap Triggered on 0b10 12 | . . . . . . . . . . . . . 12 . . . Successful Hack 80 | . 13 . . . 16 . 5 . 3 . . . 14 9 20 . Disable Machine 147 | . . . . . 60 . . . 36 . 24 . 9 . 18 . Anti-Garrison Action 1356 | . . . . . . 200 . 188 . . . 38 . 930 . . Destroy Structure 327 | . 2 18 . . 16 1 3 25 15 43 . 41 29 60 34 40 Lose Combat Pursuer 306 | . . 15 . 30 105 . . 24 12 24 . 24 . 54 . 18 Influence Decreases 6555 | 5 148 172 . 50 608 249 1085 351 817 174 693 95 764 456 731 157 Entered New Map 2441 | . . 3 . . 43 139 537 121 355 94 317 15 199 6 485 127 Time Decay 2664 | 5 128 169 . 50 515 . 238 . 452 . 356 . 505 . 246 . Lost Part 690 | . 20 . . . 50 30 10 110 10 40 20 80 60 230 . 30 Lost Ally 460 | . . . . . . 80 . 120 . 40 . . . 220 . . Purge Threat 300 | . . . . . . . 300 . . . . . . . . . Squads Dispatched 18 | . 3 . . . 2 . 1 . 4 . 3 . 4 . 1 . Investigation 5 | . 1 . . . 1 . 1 . 1 . . . 1 . . . Extermination 6 | . . . . . . . . . 1 . 2 . 2 . 1 . Reinforcement 6 | . 2 . . . . . . . 2 . 1 . 1 . . . Assault . | . . . . . . . . . . . . . . . . . Garrison 1 | . . . . . 1 . . . . . . . . . . . Intercept . | . . . . . . . . . . . . . . . . . Searches Triggered . | . . . . . . . . . . . . . . . . . Construction Impeded 1 | . . . . . . . . . 1 . . . . . . . Haulers Reinforced . | . . . . . . . . . . . . . . . . . Active Scanning Responses . | . . . . . . . . . . . . . . . . . Cargo Convoy Interrupts 1 | . . . . . . . . . . . . . 1 . . . Alert ID Control Effect 9 | . . . . . . . . . . . . . . 9 . . Stealth | -11 -10 -10 -10 -9 -8 -8 -8 -8 -7 -7 -7 -7 -6 -6 -6 -6 --------- Run | Yrd Mat Min Exi Min Mat Gar Mat Gar Fac Gar Fac Gar Fac Gar Fac Gar Distress Signals 4 | . . . . . 3 . . . 1 . . . . . . . Communications Jammed 8 | . . . . . . . . . . . . . 8 . . . Distress Signals 8 | . . . . . . . . . . . . . 8 . . . Times Spotted 297 | . 10 8 . 9 41 35 5 20 20 31 3 24 24 41 7 19 Peak Tracking Total 11 | . 2 3 . 4 6 6 2 3 4 4 2 4 6 11 3 6 Tactical Retreats 19 | . . 1 . 1 6 . . 2 1 1 . 1 . 4 . 2 Traps | -11 -10 -10 -10 -9 -8 -8 -8 -8 -7 -7 -7 -7 -6 -6 -6 -6 ------- Run | Yrd Mat Min Exi Min Mat Gar Mat Gar Fac Gar Fac Gar Fac Gar Fac Gar Traps Triggered 34 | . 1 . . . 3 2 . 5 . 6 2 7 1 6 . 1 Indirectly . | . . . . . . . . . . . . . . . . . Trap Hack Attempts . | . . . . . . . . . . . . . . . . . Triggered . | . . . . . . . . . . . . . . . . . Disarmed . | . . . . . . . . . . . . . . . . . Reprogrammed 6 | . . . . . . . . . . . . . 6 . . . Reused 2 | . . . . . . . . . . . . . 2 . . . Traps Extracted . | . . . . . . . . . . . . . . . . . Installed . | . . . . . . . . . . . . . . . . . Triggered 2 | . . . . . . . . . . . . . 2 . . . Machines | -11 -10 -10 -10 -9 -8 -8 -8 -8 -7 -7 -7 -7 -6 -6 -6 -6 ---------- Run | Yrd Mat Min Exi Min Mat Gar Mat Gar Fac Gar Fac Gar Fac Gar Fac Gar Machines Disabled 17 | . . . . . 4 1 . . 3 . 2 1 1 3 2 . Max in Single Turn 3 | . . . . . 2 1 . . 3 . 1 1 1 1 1 . Garrison Relay 4 | . . . . . . . . . . . . 1 . 3 . . Phase Generator 1 | . . . . . . 1 . . . . . . . . . . Machines Repaired . | . . . . . . . . . . . . . . . . . Machines Dismantled . | . . . . . . . . . . . . . . . . . Machines Sabotaged . | . . . . . . . . . . . . . . . . . Overloaded Fab Kills . | . . . . . . . . . . . . . . . . . Hacking | -11 -10 -10 -10 -9 -8 -8 -8 -8 -7 -7 -7 -7 -6 -6 -6 -6 --------- Run | Yrd Mat Min Exi Min Mat Gar Mat Gar Fac Gar Fac Gar Fac Gar Fac Gar Machines Accessed 41 | . 1 . 2 . 5 5 4 2 3 2 3 2 8 2 2 . Terminals 28 | . 1 . . . 3 5 3 2 1 2 2 2 4 2 1 . Fabricators 2 | . . . . . . . . . 1 . . . 1 . . . Repair Stations 1 | . . . . . . . . . . . . . 1 . . . Recycling Units 1 | . . . . . . . . . . . . . 1 . . . Scanalyzers 1 | . . . . . 1 . . . . . . . . . . . Garrison Access 6 | . . . . . 1 . 1 . 1 . 1 . 1 . 1 . Total Hacks 85 | . 5 . 2 . 14 9 7 7 6 2 8 3 16 2 4 . Successful 32 | . 3 . 2 . 7 . 5 . 3 . 3 . 5 1 3 . Failed 52 | . 2 . . . 6 9 2 7 3 2 5 3 11 1 1 . Catastrophic 11 | . . . . . 2 4 1 1 . 1 . 2 . . . . Database Lockouts 1 | . . . . . 1 . . . . . . . . . . . Manual 16 | . 1 . 1 . 5 . 1 . . . . . 8 . . . Terminals 64 | . 5 . . . 9 9 6 7 1 2 7 3 10 2 3 . Fabricators 5 | . . . . . . . . . 4 . . . 1 . . . Repair Stations 2 | . . . . . . . . . . . . . 2 . . . Recycling Units 2 | . . . . . . . . . . . . . 2 . . . Scanalyzers 4 | . . . . . 4 . . . . . . . . . . . Garrison Access 6 | . . . . . 1 . 1 . 1 . 1 . 1 . 1 . Terminal Hacks 19 | . 3 . 2 . 3 . 4 . . . 2 . 2 1 2 . Record 1 | . . . 1 . . . . . . . . . . . . . Part Schematic 1 | . . . . . 1 . . . . . . . . . . . Robot Analysis 2 | . 1 . . . . . 1 . . . . . . . . . Prototype ID Bank 2 | . 1 . . . . . . . . . 1 . . . . . Branch Access Points 1 | . 1 . . . . . . . . . . . . . . . Emergency Access Points 1 | . . . . . . . . . . . . . . . 1 . Terminal Index 1 | . . . . . . . . . . . . . 1 . . . Garrison Index 1 | . . . . . . . . . . . . . . . 1 . Unreport Threat 2 | . . . . . . . 2 . . . . . . . . . Locate Traps 1 | . . . . . . . 1 . . . . . . . . . Reprogram Traps 1 | . . . . . . . . . . . . . 1 . . . Dispatch Records 1 | . . . . . . . . . . . 1 . . . . . Hauler Manifests 1 | . . . . . 1 . . . . . . . . . . . Zone Layout 1 | . . . . . 1 . . . . . . . . . . . Patrol Navigation 1 | . . . . . . . . . . . . . . 1 . . Proto ID Catalog 1 | . . . 1 . . . . . . . . . . . . . Fabricator Hacks 2 | . . . . . . . . . 2 . . . . . . . Load Schematic 1 | . . . . . . . . . 1 . . . . . . . Build 1 | . . . . . . . . . 1 . . . . . . . Repair Station Hacks . | . . . . . . . . . . . . . . . . . Recycling Unit Hacks . | . . . . . . . . . . . . . . . . . Scanalyzer 3 | . . . . . 3 . . . . . . . . . . . Retrieve Study 3 | . . . . . 3 . . . . . . . . . . . Garrison Access Hacks 6 | . . . . . 1 . 1 . 1 . 1 . 1 . 1 . Unlock Access 6 | . . . . . 1 . 1 . 1 . 1 . 1 . 1 . Unauthorized Hacks 2 | . . . . . . . . . . . . . 2 . . . Terminals 1 | . . . . . . . . . . . . . 1 . . . Disrupt 1 | . . . . . . . . . . . . . 1 . . . Fabricators . | . . . . . . . . . . . . . . . . . Repair Stations 1 | . . . . . . . . . . . . . 1 . . . Patch 1 | . . . . . . . . . . . . . 1 . . . Recycling Units . | . . . . . . . . . . . . . . . . . Scanalyzers . | . . . . . . . . . . . . . . . . . Garrison Access . | . . . . . . . . . . . . . . . . . Data Cores Recovered . | . . . . . . . . . . . . . . . . . Used . | . . . . . . . . . . . . . . . . . Hacking Detections 33 | . 1 . . . 3 5 4 2 3 2 2 2 6 2 1 . Full Trace Events 2 | . . . . . . . . 1 1 . . . . . . . Feedback Events . | . . . . . . . . . . . . . . . . . Feedback Blocked . | . . . . . . . . . . . . . . . . . Robot Schematics Acquired . | . . . . . . . . . . . . . . . . . Robots Built . | . . . . . . . . . . . . . . . . . Authchips . | . . . . . . . . . . . . . . . . . Time . | . . . . . . . . . . . . . . . . . Total Robot Build Rating . | . . . . . . . . . . . . . . . . . Part Schematics Acquired 1 | . . . . . 1 . . . . . . . . . . . Parts Built 1 | . . . . . . . . . 1 . . . . . . . Authchips . | . . . . . . . . . . . . . . . . . Time 51 | . . . . . . . . . 51 . . . . . . . Total Part Build Rating 1 | . . . . . . . . . 1 . . . . . . . Part Studies Acquired 3 | . . . . . 3 . . . . . . . . . . . Parts Repaired . | . . . . . . . . . . . . . . . . . Time . | . . . . . . . . . . . . . . . . . Parts Recycled . | . . . . . . . . . . . . . . . . . Recycled Matter . | . . . . . . . . . . . . . . . . . Retrieved Matter . | . . . . . . . . . . . . . . . . . Retrieved Components . | . . . . . . . . . . . . . . . . . Parts Scanalyzed . | . . . . . . . . . . . . . . . . . Part Schematics Acquired . | . . . . . . . . . . . . . . . . . Parts Damaged . | . . . . . . . . . . . . . . . . . Bothacking | -11 -10 -10 -10 -9 -8 -8 -8 -8 -7 -7 -7 -7 -6 -6 -6 -6 ------------ Run | Yrd Mat Min Exi Min Mat Gar Mat Gar Fac Gar Fac Gar Fac Gar Fac Gar Used RIF Installer 6 | . . . . . . 2 . 1 . 1 . 1 . 1 . . Coupler Efficiency 1 | . . . . . . 1 . . . . . . . . . . Threat Obfuscator 2 | . . . . . . . . 1 . . . 1 . . . . Patrol Navigation 1 | . . . . . . . . . . 1 . . . . . . Alert ID Control 1 | . . . . . . . . . . . . . . 1 . . Robots Hacked 8 | . . . . . . . . . . . . . . 8 . . Non-combat . | . . . . . . . . . . . . . . . . . Combat 8 | . . . . . . . . . . . . . . 8 . . Robot Hacks Applied 8 | . . . . . . . . . . . . . . 8 . . wipe_record 1 | . . . . . . . . . . . . . . 1 . . streamctrl_high 1 | . . . . . . . . . . . . . . 1 . . formatsys_high 6 | . . . . . . . . . . . . . . 6 . . Relay Couplers Released 19 | . . . . . . . . . . . . 4 4 11 . . Machine Destruction 15 | . . . . . . . . . . . . 4 . 11 . . Programmers 4 | . . . . . . . . . . . . . 4 . . . Attached 4 | . . . . . . . . . . . . . . 4 . . Fabnet Peak Effective % . | . . . . . . . . . . . . . . . . . Robots Rewired 16 | . . . . . . 10 . . . 3 . . . 3 . . Allies Hacked . | . . . . . . . . . . . . . . . . . Hacks Repelled . | . . . . . . . . . . . . . . . . . Allies | -11 -10 -10 -10 -9 -8 -8 -8 -8 -7 -7 -7 -7 -6 -6 -6 -6 -------- Run | Yrd Mat Min Exi Min Mat Gar Mat Gar Fac Gar Fac Gar Fac Gar Fac Gar Total Allies 26 | . . . . . . 12 . . . 3 . . . 11 . . Largest Group 8 | . . . . . . 7 7 7 . 2 . . . 8 . . Highest-Rated Group 274 | . . . . . . 129 129 127 . 44 . . . 274 . . Highest-Rated Ally 46 | . . . . . . 39 21 21 . 24 . . . 46 . . Total Orders . | . . . . . . . . . . . . . . . . . Ally Attacks 223 | . . . . . . 85 28 43 . 4 . . . 63 . . Total Damage 4345 | . . . . . . 947 666 868 . 92 . . . 1772 . . Kills 33 | . . . . . . 11 7 5 . . . . . 10 . . Allies Corrupted . | . . . . . . . . . . . . . . . . . Allies Melted 1 | . . . . . . . . 1 . . . . . . . . Intel | -11 -10 -10 -10 -9 -8 -8 -8 -8 -7 -7 -7 -7 -6 -6 -6 -6 ------- Run | Yrd Mat Min Exi Min Mat Gar Mat Gar Fac Gar Fac Gar Fac Gar Fac Gar Active Infowar (turns) 3439 | 20 243 1 . . . . . 1178 372 . . . 1571 54 . . Sensors 1 | . . 1 . . . . . . . . . . . . . . Seismic 263 | 20 243 . . . . . . . . . . . . . . . Jamming 3175 | . . . . . . . . 1178 372 . . . 1571 54 . . Robot Analysis Total 2 | . 1 . . . . . 1 . . . . . . . . . Derelict Logs Recovered 1 | . . 1 . . . . . . . . . . . . . . Drone Launches . | . . . . . . . . . . . . . . . . . Drone Recoveries . | . . . . . . . . . . . . . . . . . Exploration | -11 -10 -10 -10 -9 -8 -8 -8 -8 -7 -7 -7 -7 -6 -6 -6 -6 ------------- Run | Yrd Mat Min Exi Min Mat Gar Mat Gar Fac Gar Fac Gar Fac Gar Fac Gar Turns Passed 17785 | 69 427 565 321 136 1545 1854 502 1997 1129 1143 806 1096 1573 3767 520 335 Spaces Moved 7918 | 51 243 534 337 117 980 836 207 772 500 536 521 543 626 861 162 92 Core 12 | 11 . . . . . . . . . . . . . 1 . . Treads 2619 | . . . . . 248 836 153 623 111 . . . . 648 . . Legs 327 | 40 243 17 . . . . . . . . . . . 27 . . Wheels 4960 | . . 517 337 117 732 . 54 149 389 536 521 543 626 185 162 92 Hover . | . . . . . . . . . . . . . . . . . Flight . | . . . . . . . . . . . . . . . . . Fastest Speed 50 | 50 120 80 95 95 90 160 125 110 145 145 145 130 190 190 190 205 Average Speed 178 | 104 120 90 95 95 116 184 210 222 179 145 145 141 198 360 201 205 Slowest Speed 2550 | 120 120 120 95 95 240 240 240 240 240 145 145 145 215 2550 205 205 Overloaded Moves . | . . . . . . . . . . . . . . . . . Propulsion Burnouts . | . . . . . . . . . . . . . . . . . Robots Hopped . | . . . . . . . . . . . . . . . . . Potential Cave-ins . | . . . . . . . . . . . . . . . . . Cave-ins Triggered . | . . . . . . . . . . . . . . . . . Exploration Rate (%) 44 | 3 39 89 62 31 60 77 30 61 17 80 15 80 21 72 5 22 Regions Visited 16 Branch Regions 3 Pre-discovered Areas 1 | . . . 1 . . . . . . . . . . . . . Known Exits Taken 7 | . 1 . . . 1 . 1 . 1 . 1 . 1 . 1 . Unknown Exits Taken 4 | 1 . 1 1 1 . . . . . . . . . . . . Scrap Searched 2 | . . 1 . 1 . . . . . . . . . . . . Spaces Dug 1 | . . . . . . . . . . . . . . . 1 . Terrain Destroyed 292 | . . 22 . . 14 . . 16 12 28 . 13 31 47 36 73 Melee 1 | . . . . . . . . . . . . . . . 1 . Projectile 21 | . . . . . . . . 7 . . . . . 1 2 11 AOE 269 | . . 22 . . 14 . . 9 12 28 . 13 30 46 33 62 Terrain Rammed . | . . . . . . . . . . . . . . . . . Walls Destroyed . | . . . . . . . . . . . . . . . . . Machines Disabled . | . . . . . . . . . . . . . . . . . Actions | -11 -10 -10 -10 -9 -8 -8 -8 -8 -7 -7 -7 -7 -6 -6 -6 -6 --------- Run | Yrd Mat Min Exi Min Mat Gar Mat Gar Fac Gar Fac Gar Fac Gar Fac Gar Total 10233 | 59 309 591 338 132 1223 1060 252 938 630 760 551 760 839 1291 335 165 Wait 740 | . 8 9 . 8 79 72 15 55 22 47 7 84 76 90 156 12 Move 7908 | 50 242 533 336 116 980 835 207 771 500 535 521 542 626 860 162 92 Hop . | . . . . . . . . . . . . . . . . . Pick Up 172 | . 10 8 1 . 20 4 8 15 13 11 7 7 23 40 2 3 Fast Attach 84 | 7 3 . . . 16 3 2 5 5 4 . 2 5 30 1 1 Attach 69 | . . . . . 3 4 1 10 4 4 2 7 12 19 . 3 Detach 36 | . 1 . . . 3 2 . 3 6 . . . 8 12 1 . Swap 136 | . 3 11 . 1 18 8 2 11 4 4 . 9 13 36 4 12 Drop 174 | . 6 12 1 1 32 11 7 11 18 10 4 3 10 44 1 3 Fire 653 | 2 36 18 . 6 72 37 10 51 58 61 10 51 66 138 6 31 Melee 13 | . . . . . . . . . . . . . . 11 2 . Ram . | . . . . . . . . . . . . . . . . . Kick . | . . . . . . . . . . . . . . . . . Crush 1 | . . . . . . . . . . . . . . 1 . . Escape Stasis 88 | . . . . . . 1 . 6 . 8 . 55 . 10 . 8 Rewire 159 | . . . . . . 83 . . . 76 . . . . . . Trap . | . . . . . . . . . . . . . . . . . Miscellaneous . | . . . . . . . . . . . . . . . . . Route ------- -11/Scrapyard -10/Materials (discovered 3 exits: [*Mat] / *Min x2) -10/Mines (discovered 3 exits: [*Mat] / *Exi / [*Sub]) -10/Exiles -9/Mines -8/Materials (discovered 3 exits: *Fac x2 / Gar) -8/Garrison (discovered 4 exits: *Mat x4) -8/Materials -8/Garrison (discovered 3 exits: *Fac x3) -7/Factory -7/Garrison (discovered 4 exits: *Fac x3 / *Fac) -7/Factory (discovered 2 exits: [*Low] / Gar) -7/Garrison (discovered 3 exits: *Fac x3) -6/Factory (discovered 2 exits: [*Fac] / Gar) -6/Garrison (discovered 3 exits: *Fac x3) -6/Factory -6/Garrison History --------- Turn | Location | Event 3 | -11/Scrapyard | Discovered new exit (range 16) 70 | -11/Scrapyard | Entered Materials 106 | -10/Materials | Discovered new exit (range 15) 190 | -10/Materials | Identified exit to Mines 193 | -10/Materials | Discovered new exit (range 3) 318 | -10/Materials | Build established: Mutant 497 | -10/Materials | Entered Mines 523 | -10/Mines | Found a damaged Exp. Sensor Array with a note attached 530 | -10/Mines | Found Prototype Device 533 | -10/Mines | Identified Exp. Sensor Array 545 | -10/Mines | Assembled infested the area 803 | -10/Mines | A weapon hastily lodged in a ceiling crevice suddenly fell to the ground 845 | -10/Mines | Discovered new exit (range 7) 996 | -10/Mines | Discovered new exit (range 8) 1058 | -10/Mines | Deemed a non-threat by the Exiles lab entrance 1059 | -10/Mines | Discovered new exit (range 5) 1062 | -10/Mines | Entered Exiles 1085 | -10/Exiles | Met 8R-AWN 1102 | -10/Exiles | Met EX-HEX 1141 | -10/Exiles | Met EX-DEC 1148 | -10/Exiles | Learned location of Zion (-6) 1178 | -10/Exiles | Discovered new exit (range 10) 1242 | -10/Exiles | Met EX-BIN 1253 | -10/Exiles | Aligned with FarCom system 1254 | -10/Exiles | Given EX-Vault access code 1281 | -10/Exiles | Opened EX-Vault 1288 | -10/Exiles | Found Skeleton Box 1312 | -10/Exiles | Warned to stay clear of 0b10 Research branches 1383 | -10/Exiles | Left Exiles lab with Skeleton Box 1383 | -10/Exiles | Entered Mines 1501 | -9/Mines | Received a Rocket Launcher from a helpful Derelict 1505 | -9/Mines | Discovered new exit (range 15) 1519 | -9/Mines | Entered Materials 1519 | -8/Materials | Evolved 4 slots: Utility x2, Weapon x2 2275 | -8/Materials | Discovered new exit (range 16) 2354 | -8/Materials | Garrison activated, responded to threat 2480 | -8/Materials | Discovered new exit (range 16) 2501 | -8/Materials | Central database locked down 2649 | -8/Materials | Build established: Skirmisher 3064 | -8/Materials | Identified exit to Garrison 3064 | -8/Materials | Entered Garrison 3128 | -8/Garrison | Remotely autohacked Sealed Heavy Doors 3129 | -8/Garrison | Rescued a captive Derelict 3129 | -8/Garrison | Rescued a captive Derelict 3246 | -8/Garrison | Triggered checkpoint 3256 | -8/Garrison | Triggered checkpoint 3376 | -8/Garrison | Triggered checkpoint 3400 | -8/Garrison | Discovered new exit (range 6) 3493 | -8/Garrison | Discovered new exit (range 10) 3634 | -8/Garrison | Triggered checkpoint 3714 | -8/Garrison | Triggered checkpoint 3776 | -8/Garrison | Discovered new exit (range 11) 3812 | -8/Garrison | Triggered checkpoint 4105 | -8/Garrison | Discovered new exit (range 11) 4114 | -8/Garrison | Phase Generator disabled 4117 | -8/Garrison | Met a derelict Sapper fleeing the area 4178 | -8/Garrison | Triggered checkpoint 4422 | -8/Garrison | Build established: Scavenger-Skirmisher 4734 | -8/Garrison | Installed Relay Interface Framework 4786 | -8/Garrison | Expanded RIF knowledge: Coupler Efficiency 4918 | -8/Garrison | Entered Materials 4918 | -8/Materials | Accompanied by 7 allies 5419 | -8/Materials | Identified exit to Garrison 5420 | -8/Materials | Entered Garrison 5420 | -8/Garrison | Accompanied by 7 allies 5458 | -8/Garrison | Triggered checkpoint 5528 | -8/Garrison | Spotted B-75 Beast 5554 | -8/Garrison | Core integrity fell below 50% 5569 | -8/Garrison | Allies destroyed B-75 Beast 5584 | -8/Garrison | Lost 6 parts (1n2u3w) 5595 | -8/Garrison | Lost 4 allies 5622 | -8/Garrison | Expanded RIF knowledge: Threat Obfuscation 5764 | -8/Garrison | Lost 3 parts (1p1n1w) 5944 | -8/Garrison | Triggered checkpoint 5944 | -8/Garrison | Triggered checkpoint 6102 | -8/Garrison | Discovered new exit (range 9) 6303 | -8/Garrison | Spotted B-75 Beast 6500 | -8/Garrison | Triggered checkpoint 6627 | -8/Garrison | Discovered new exit (range 8) 6845 | -8/Garrison | Discovered new exit (range 13) 7072 | -8/Garrison | Triggered checkpoint 7406 | -8/Garrison | System corruption reached 10% 7417 | -8/Garrison | Entered Factory 7417 | -7/Factory | Evolved 2 slots: Power x1, Utility x1 7688 | -7/Factory | Fabricated Cargo Storage Unit? 8546 | -7/Factory | Identified exit to Garrison 8546 | -7/Factory | Entered Garrison 8602 | -7/Garrison | Triggered checkpoint 8680 | -7/Garrison | Triggered checkpoint 8751 | -7/Garrison | Discovered new exit (range 13) 8792 | -7/Garrison | Triggered checkpoint 8886 | -7/Garrison | Triggered checkpoint 9134 | -7/Garrison | Found Hvy. Insulated Plating 9309 | -7/Garrison | Discovered new exit (range 8) 9342 | -7/Garrison | Expanded RIF knowledge: Patrol Navigation 9398 | -7/Garrison | Triggered checkpoint 9456 | -7/Garrison | Triggered checkpoint 9506 | -7/Garrison | Discovered new exit (range 12) 9562 | -7/Garrison | Triggered checkpoint 9615 | -7/Garrison | Discovered new exit (range 5) 9689 | -7/Garrison | Entered Factory 9860 | -7/Factory | Build established: Scavenger-Tank 9871 | -7/Factory | Discovered new exit (range 7) 10495 | -7/Factory | Identified exit to Garrison 10495 | -7/Factory | Entered Garrison 10742 | -7/Garrison | Lost 7 parts (1p1n3u2w) 10757 | -7/Garrison | Triggered checkpoint 10855 | -7/Garrison | Discovered new exit (range 14) 10899 | -7/Garrison | Triggered checkpoint 11049 | -7/Garrison | Garrison Relay disabled 11149 | -7/Garrison | Triggered checkpoint 11223 | -7/Garrison | Discovered new exit (range 15) 11278 | -7/Garrison | Expanded RIF knowledge: Threat Obfuscation 11343 | -7/Garrison | Triggered checkpoint 11483 | -7/Garrison | Triggered checkpoint 11556 | -7/Garrison | Discovered new exit (range 15) 11591 | -7/Garrison | Entered Factory 11591 | -6/Factory | Evolved 2 slots: Utility x2 11749 | -6/Factory | Discovered new exit (range 13) 12046 | -6/Factory | Build established: Hauler-Tank 12620 | -6/Factory | Cargo convoy interrupted 12692 | -6/Factory | Destroyed 7 combat bots 12693 | -6/Factory | Lost 4 parts (1p3w) 13164 | -6/Factory | Identified exit to Garrison 13164 | -6/Factory | Entered Garrison 13170 | -6/Garrison | Triggered checkpoint 13246 | -6/Garrison | Triggered checkpoint 13385 | -6/Garrison | Expanded RIF knowledge: Alert ID Control 13582 | -6/Garrison | Triggered checkpoint 13583 | -6/Garrison | Triggered checkpoint 13585 | -6/Garrison | Triggered checkpoint 13644 | -6/Garrison | Destroyed 9 combat bots 13658 | -6/Garrison | Core integrity fell below 50% 13731 | -6/Garrison | Lost 17 parts (4p2n5u6w) 13886 | -6/Garrison | Build established: Hauler-Mutant 14323 | -6/Garrison | Garrison Relay disabled 14324 | -6/Garrison | Build established: Scavenger-Mutant 14614 | -6/Garrison | Triggered checkpoint 14839 | -6/Garrison | Discovered new exit (range 10) 14946 | -6/Garrison | Triggered checkpoint 15009 | -6/Garrison | Garrison Relay disabled 15372 | -6/Garrison | Build established: Botlord-Tank 15704 | -6/Garrison | Remotely autohacked Sealed Heavy Doors 15705 | -6/Garrison | Rescued a captive Derelict 15811 | -6/Garrison | Discovered new exit (range 12) 16212 | -6/Garrison | Spotted B-75 Beast 16221 | -6/Garrison | Allies destroyed B-75 Beast 16292 | -6/Garrison | Core integrity fell below 20% 16363 | -6/Garrison | Lost 3 allies 16427 | -6/Garrison | Garrison Relay disabled 16450 | -6/Garrison | Lost 3 allies 16693 | -6/Garrison | Build established: Scavenger-Tank 16803 | -6/Garrison | Discovered new exit (range 6) 16931 | -6/Garrison | Entered Factory 17451 | -6/Factory | Identified exit to Garrison 17451 | -6/Factory | Entered Garrison 17525 | -6/Garrison | Triggered checkpoint 17718 | -6/Garrison | Lost 3 parts (2u1w) 17739 | -6/Garrison | Triggered checkpoint 17754 | -6/Garrison | System corruption reached 10% 17786 | -6/Garrison | Destroyed by P-70 Sage with Tesla Rifle Last Messages --------------- 17750_ Slug penetrates P-60 Hacker. 17751_ The unstable cave ceiling collapses. 17753_ Slug penetrates P-60 Hacker. 17753_ Destroyed Unknown Hover Unit. 17753_ Slug penetrates P-60 Hacker. 17753_ P-60 Hacker suffers critical hit (Destroy). 17753_ P-60 Hacker destroyed. 17753_ Switching to secondary target: P-60 Hacker. 17753_ Destroyed Unknown Hover Unit. 17755_ The unstable cave ceiling collapses. 17757_ Slug penetrates P-60 Hacker. 17757_ P-60 Hacker destroyed. 17757_ Slug penetrates Wall. 17763_ System corrupted: Matter fused (-10). 17763_ Acquired 40 matter. 17780_ Slug penetrates P-70 Sage. 17780_ Slug penetrates Wall. 17780_ Slug penetrates P-70 Sage. 17784_ System corrupted: Component data lost. Garrison Door activated. Map ----- +----------------------------------------------------+ | ?????????????????????????????????????????????????? | | ?????????????????????????????????????????????????? | | ?????????????????????????????????????????????????? | | ?????????????????????????????????????????????????? | | ?????????????????????????????????????????????????? | | ?????????????????????????????????????????????????? | | ?????????????????????????????????????????????????? | | ?????????????????????????????????????????????????? | | ?????????????????????????????????????????????????? | | ?????????????????????????????????????????????????? | | ????????????????????g??g?????????????????????????? | | ??????????????####??""""????##???????????????????? | | ?????????????? ? #???????????????????? | | ?????????????? ? ?? +???????????????????? | | ?????????????? ? ?? p#???????????????????? | | ??????????????# ?# #? #???????????????????? | | ????????????### ## ## ###?????????????????? | | ????????????# s#?????????????????? | | ????????????# s#?????????????????? | | ????????????# ??????????????????? | | ?????????????C ss??????????????????? | | ??????????????# ## #? #???????????????????? | | ??????????????# ## ## ##########??????????? | | ??????????????# ![| ^ #??????????? | | ??????????????# %[[ ^ ????????????? | | ??????????????# | = @ #???????????????????? | | ??????????????# ## ## ##???????????????????? | | ????????????### # #? #????????????????????? | | ???????????## #+####?? #????????????????????? | | ?????# #### # [ #????? #????????????????????? | | ?????# * #??????#????????????????????? | | ?????# #### [ ####???????????????????????????? | | ?????????# # # # #????????????????????????????? | | ########## * # ##???????????????????????????? | | = [ #???????????????????????????? | | ##???????????????????????????? | | ! #???????????????????????????? | | ######### ## # # ##???????????????????????????? | | ???????# ## #???????????????????????????? | | ???????###### # ##???????????????????????????? | | ????????????### #####????????????????????????????? | | ??????????????###????????????????????????????????? | | ?????????????????????????????????????????????????? | | ?????????????????????????????????????????????????? | | ?????????????????????????????????????????????????? | | ?????????????????????????????????????????????????? | | ?????????????????????????????????????????????????? | | ?????????????????????????????????????????????????? | | ?????????????????????????????????????????????????? | | ?????????????????????????????????????????????????? | +----------------------------------------------------+ Best States ------------- Heat Dissipation 94 Coolant Potential 65 Energy Generation 31 Energy Capacity 680 Matter Stores 300 Matter Capacity 450 Sight Range 16 Terrain Scan Density 10 Jamming Range 12 Additional Mass Support 12 EM Shielding 2 Armor Coverage 600 Resistance: KI 20 Resistance: EM 30 Core Shielding 30 Power Shielding 66 Weapon Cycling 15 Evasion (%) 55 Targeting Accuracy 8 Target Analysis 5 Recoil Reduction 2 Relay Coupler Types 3 Relay Coupler Value 62 Item Schematics ----------------- Cargo Storage Unit | -8/Materials | Hacked Robot Schematics ------------------ None Fabricated ------------ Cargo Storage Unit | x1 | -7/Factory Repaired ---------- Nothing Studied --------- Arm. Wheel | -8/Materials | Hacked Com. Wheel | -8/Materials | Hacked Missile Launcher | -8/Materials | Hacked Alien Tech Used ----------------- None Achievements -------------- Drive-By Challenges ------------ None Game ------ Seed TargetHypervelocityMask Manual? 0 Play Time 01:50:02 Cumulative 140.3 hours Start 2025.12.06 @ 12:28:39 End 2025.12.06 @ 16:15:23 Sessions 3 Manual Loads 0 Difficulty Rogue Special Mode None Game No. 111 Rogue 111 Adventurer 0 Explorer 0 Win Type - Total 1 Types 1/0/0/0/0/0/0/0/0/0 Lore% 63 Gallery% 66 Achievement% 55 Wizard Run 0 Options --------- Layout 0 ASCII 0 Keyboard 1 Movement Vi Keybinds 0 Fullscreen 1 Font 18/SmallcapsGlow Map View 76x50 Zoom Use 0% Tactical HUD 1 Map Filters NONE Filters NONE Steam 1 RUN: 42ce44d4-1d30-4107-bfef-e6cf9a0e97d6